[Event "NJSK 2022 Meisjes A&B"]
[Site "Almelo, Netherlands"]
[Date "2022.05.01"]
[Round "1.6"]
[White "Honkoop, Stella"]
[Black "Ganeshram, Nirupa"]
[Result "1-0"]
[TimeControl "90min/40moves + 30min + 30sec/move"]
[WhiteElo "1711"]
[BlackElo "1546"]

1. d4 {[%clk 01:30:58]} {[%emt 00:00:02]} d5 {[%clk 01:30:53]} {[%emt
00:00:07]} 2. Bf4 {[%clk 01:31:23]} {[%emt 00:00:05]} e6 {[%clk 01:31:13]}
{[%emt 00:00:11]} 3. e3 {[%clk 01:31:42]} {[%emt 00:00:11]} c5 {[%clk
01:31:20]} {[%emt 00:00:22]} 4. c3 {[%clk 01:31:49]} {[%emt 00:00:23]} Nc6
{[%clk 01:30:09]} {[%emt 00:01:41]} 5. Nf3 {[%clk 01:31:55]} {[%emt 00:00:24]}
Nf6 {[%clk 01:28:06]} {[%emt 00:02:33]} 6. Nbd2 {[%clk 01:31:08]} {[%emt
00:01:16]} Be7 {[%clk 01:26:44]} {[%emt 00:01:52]} 7. Bd3 {[%clk 01:30:07]}
{[%emt 00:01:32]} O-O {[%clk 01:24:48]} {[%emt 00:02:25]} 8. Ne5 {[%clk
01:23:41]} {[%emt 00:06:57]} Nxe5 {[%clk 01:18:43]} {[%emt 00:06:35]} 9. dxe5
{[%clk 01:23:56]} {[%emt 00:00:15]} Ne8 {[%clk 01:08:54]} {[%emt 00:10:19]} 10.
h4 {[%clk 01:01:54]} {[%emt 00:22:32]} f5 {[%clk 00:32:33]} {[%emt 00:36:50]}
11. g4 {[%clk 00:41:36]} {[%emt 00:20:48]} d4 {[%clk 00:25:35]} {[%emt
00:25:18]} 12. Bc4 {[%clk 00:20:56]} {[%emt 00:21:11]} Bxh4 {[%clk 00:17:14]}
{[%emt 00:08:51]} 13. gxf5 {[%clk 00:14:45]} {[%emt 00:06:41]} dxe3 {[%clk
00:16:12]} {[%emt 00:01:32]} 14. Bxe3 {[%clk 00:14:24]} {[%emt 00:00:51]} h6
{[%clk 00:05:44]} {[%emt 00:10:58]} 15. fxe6 {[%clk 00:09:46]} {[%emt
00:05:08]} Kh8 {[%clk 00:05:32]} {[%emt 00:00:42]} 16. Bxc5 {[%clk 00:08:14]}
{[%emt 00:02:01]} Rf5 {[%clk 00:05:16]} {[%emt 00:00:46]} 17. Bd4 {[%clk
00:08:01]} {[%emt 00:00:44]} Qg5 {[%clk 00:03:14]} {[%emt 00:02:31]} 18. Rf1
{[%emt 00:04:18]} Qf4 {[%clk 00:02:50]} {[%emt 00:00:52]} 19. Bd3 {[%clk
00:02:53]} {[%emt 00:01:52]} Rf8 {[%clk 00:02:16]} {[%emt 00:01:03]} 20. Qb3
{[%clk 00:02:48]} {[%emt 00:00:36]} Bg5 {[%clk 00:01:43]} {[%emt 00:01:03]} 21.
Ne4 {[%clk 00:01:44]} {[%emt 00:01:34]} Bh4 {[%clk 00:01:30]} {[%emt 00:00:43]}
22. Nd2 {[%clk 00:01:10]} {[%emt 00:01:04]} Bg5 {[%clk 00:01:40]} {[%emt
00:00:19]} 23. Qc2 {[%clk 00:01:20]} {[%emt 00:00:20]} Bxe6 {[%clk 00:01:45]}
{[%emt 00:00:25]} 24. O-O-O {[%clk 00:01:09]} {[%emt 00:00:42]} Qf7 {[%clk
00:01:00]} {[%emt 00:01:15]} 25. b3 {[%clk 00:01:19]} {[%emt 00:00:20]} Qc7
{[%clk 00:01:02]} {[%emt 00:00:28]} 26. Kb2 {[%clk 00:01:33]} {[%emt 00:00:16]}
a5 {[%clk 00:01:19]} {[%emt 00:00:13]} 27. Bc4 {[%clk 00:01:12]} {[%emt
00:00:51]} Bf5 {[%clk 00:01:36]} {[%emt 00:00:13]} 28. Bd3 {[%clk 00:01:26]}
{[%emt 00:00:17]} Be6 {[%clk 00:02:02]} {[%emt 00:00:03]} 29. Ne4 {[%clk
00:01:39]} {[%emt 00:00:17]} Be7 {[%clk 00:02:19]} {[%emt 00:00:14]} 30. f4
{[%clk 00:01:03]} {[%emt 00:01:06]} Qc6 {[%clk 00:01:42]} {[%emt 00:01:07]} 31.
Qe2 {[%clk 00:01:00]} {[%emt 00:00:32]} Nc7 {[%clk 00:01:35]} {[%emt 00:00:37]}
32. Qf2 {[%clk 00:00:45]} {[%emt 00:00:45]} a4 {[%clk 00:01:29]} {[%emt
00:00:37]} 33. b4 {[%clk 00:00:50]} {[%emt 00:00:24]} Bf5 {[%clk 00:01:19]}
{[%emt 00:00:40]} 34. Nc5 {[%clk 00:00:49]} {[%emt 00:00:31]} b6 {[%clk
00:01:31]} {[%emt 00:00:17]} 35. b5 {[%clk 00:00:50]} {[%emt 00:00:29]} Qe8
{[%clk 00:01:19]} {[%emt 00:00:42]} 36. Ne4 {[%clk 00:00:41]} {[%emt 00:00:39]}
Bxe4 {[%clk 00:01:32]} {[%emt 00:00:17]} 37. Bxe4 {[%clk 00:01:06]} {[%emt
00:00:04]} Qxb5+ {[%clk 00:01:58]} {[%emt 00:00:04]} 38. Kc2 {[%clk 00:01:09]}
{[%emt 00:00:27]} Qc4 {[%clk 00:02:01]} {[%emt 00:00:27]} 39. Bxa8 {[%clk
00:00:57]} {[%emt 00:00:42]} Qxa2+ {[%clk 00:02:24]} {[%emt 00:00:07]} 40. Kd3
{[%clk 00:01:23]} {[%emt 00:00:04]} Qb3 {[%clk 00:02:35]} {[%emt 00:00:19]} 41.
Rb1 {[%clk 00:01:39]} {[%emt 00:00:14]} Qe6 {[%clk 00:02:50]} {[%emt 00:00:15]}
42. Be4 {[%clk 00:01:47]} {[%emt 00:00:22]} b5 {[%clk 00:03:09]} {[%emt
00:00:11]} 43. Qb2 {[%clk 00:01:05]} {[%emt 00:01:12]} Rb8 {[%clk 00:03:14]}
{[%emt 00:00:25]} 44. Rf2 {[%clk 00:00:57]} {[%emt 00:00:39]} Qc4+ {[%clk
00:02:59]} {[%emt 00:00:45]} 45. Kd2 {[%clk 00:01:12]} {[%emt 00:00:15]} Bh4
{[%clk 00:03:09]} {[%emt 00:00:19]} 46. Rf3 {[%clk 00:01:16]} {[%emt 00:00:26]}
Be7 {[%clk 00:03:27]} {[%emt 00:00:13]} 47. Ba7 {[%clk 00:01:02]} {[%emt
00:00:43]} Rd8+ {[%clk 00:03:44]} {[%emt 00:00:12]} 48. Bd4 {[%clk 00:01:28]}
{[%emt 00:00:05]} Rb8 {[%clk 00:03:48]} {[%emt 00:00:26]} 49. Ra1 {[%clk
00:01:07]} {[%emt 00:00:51]} Rd8 {[%clk 00:03:16]} {[%emt 00:01:02]} 50. Rd3
{[%clk 00:00:52]} {[%emt 00:00:45]} Ne6 {[%clk 00:02:59]} {[%emt 00:00:47]} 51.
Ke3 {[%clk 00:00:42]} {[%emt 00:00:40]} Rf8 {[%clk 00:03:12]} {[%emt 00:00:16]}
52. Rf1 {[%clk 00:01:09]} {[%emt 00:00:04]} Nc7 {[%clk 00:02:12]} {[%emt
00:01:30]} 53. Bb6 {[%clk 00:01:08]} {[%emt 00:00:31]} Ne6 {[%clk 00:01:50]}
{[%emt 00:00:52]} 54. Bd5 {[%clk 00:01:19]} {[%emt 00:00:19]} Qc8 {[%clk
00:30:19]} {[%emt 00:02:00]} 55. Bxe6 {[%clk 00:21:48]} {[%emt 00:10:01]} Qxe6
{[%clk 00:30:26]} {[%emt 00:00:24]} 56. Bd4 {[%clk 00:18:34]} {[%emt 00:03:43]}
Qc4 {[%clk 00:28:03]} {[%emt 00:02:52]} 57. Rdd1 {[%clk 00:16:53]} {[%emt
00:02:11]} Rc8 {[%clk 00:25:09]} {[%emt 00:03:24]} 58. Rg1 {[%clk 00:13:58]}
{[%emt 00:03:26]} Rc7 {[%clk 00:21:10]} {[%emt 00:04:28]} 59. Rb1 {[%clk
00:13:05]} {[%emt 00:01:24]} Rb7 {[%clk 00:21:09]} {[%emt 00:00:31]} 60. Qg2
{[%clk 00:13:26]} {[%emt 00:00:10]} Bc5 {[%clk 00:18:55]} {[%emt 00:02:43]} 61.
Qxb7 {[%clk 00:12:44]} {[%emt 00:01:12]} Bxd4+ {[%clk 00:19:05]} {[%emt
00:00:20]} 62. cxd4 {[%clk 00:11:36]} {[%emt 00:01:38]} Qc3+ {[%clk 00:19:05]}
{[%emt 00:00:30]} 63. Kf2 {[%clk 00:06:54]} {[%emt 00:05:09]} Qd2+ {[%clk
00:18:47]} {[%emt 00:00:50]} 64. Kg3 {[%clk 00:06:53]} {[%emt 00:00:30]} Qe3+
{[%clk 00:18:55]} {[%emt 00:00:23]} 65. Qf3 {[%clk 00:07:12]} {[%emt 00:00:12]}
Qxd4 {[%clk 00:19:17]} {[%emt 00:00:07]} 66. Rgd1 {[%clk 00:07:05]} {[%emt
00:00:37]} Qb6 {[%clk 00:19:21]} {[%emt 00:00:27]} 67. Rd6 {[%clk 00:06:45]}
{[%emt 00:00:50]} Qc7 {[%clk 00:18:31]} {[%emt 00:01:20]} 68. Qd3 {[%clk
00:06:39]} {[%emt 00:00:36]} g5 {[%clk 00:18:02]} {[%emt 00:00:59]} 69. Rd8+
{[%clk 00:06:58]} {[%emt 00:00:11]} 1-0

[Event "NJSK 2022 Meisjes A&B"]
[Site "Almelo, Netherlands"]
[Date "2022.05.01"]
[Round "1.7"]
[White "Wortman, Manixia"]
[Black "Venema, Katja"]
[Result "0-1"]
[TimeControl "90min/40moves + 30min + 30sec/move"]
[WhiteElo "1432"]
[BlackElo "1692"]

1. e4 {[%clk 01:30:58]} {[%emt 00:00:01]} e6 {[%clk 01:30:54]} {[%emt
00:00:06]} 2. d4 {[%clk 01:31:20]} {[%emt 00:00:08]} d5 {[%clk 01:31:16]}
{[%emt 00:00:08]} 3. exd5 {[%clk 01:31:41]} {[%emt 00:00:09]} exd5 {[%clk
01:31:38]} {[%emt 00:00:08]} 4. Nf3 {[%clk 01:32:06]} {[%emt 00:00:05]} Nf6
{[%clk 01:31:35]} {[%emt 00:00:33]} 5. Bg5 {[%clk 01:32:23]} {[%emt 00:00:13]}
Be7 {[%clk 01:31:17]} {[%emt 00:00:49]} 6. Nc3 {[%clk 01:32:14]} {[%emt
00:00:38]} O-O {[%clk 01:31:00]} {[%emt 00:00:47]} 7. Be2 {[%clk 01:32:32]}
{[%emt 00:00:12]} Nc6 {[%clk 01:30:11]} {[%emt 00:01:19]} 8. O-O {[%clk
01:32:35]} {[%emt 00:00:28]} h6 {[%clk 01:27:27]} {[%emt 00:03:14]} 9. Bh4
{[%clk 01:31:54]} {[%emt 00:01:10]} Bf5 {[%clk 01:26:23]} {[%emt 00:01:34]} 10.
Ne5 {[%clk 01:28:04]} {[%emt 00:04:20]} Nb4 {[%clk 01:21:09]} {[%emt 00:05:44]}
11. Bd3 {[%clk 01:26:48]} {[%emt 00:01:46]} Nxd3 {[%clk 01:14:48]} {[%emt
00:06:51]} 12. Nxd3 {[%clk 01:27:07]} {[%emt 00:00:11]} c6 {[%clk 01:10:54]}
{[%emt 00:04:24]} 13. Re1 {[%clk 01:26:23]} {[%emt 00:01:14]} Re8 {[%clk
01:05:02]} {[%emt 00:06:22]} 14. Qf3 {[%clk 01:20:40]} {[%emt 00:06:13]} Be4
{[%clk 00:57:09]} {[%emt 00:08:23]} 15. Qe2 {[%clk 01:16:07]} {[%emt 00:05:03]}
Bd6 {[%clk 00:50:33]} {[%emt 00:07:06]} 16. f3 {[%clk 01:14:53]} {[%emt
00:01:44]} Bf5 {[%clk 00:43:31]} {[%emt 00:07:32]} 17. Qd2 {[%clk 01:14:28]}
{[%emt 00:00:54]} Be7 {[%clk 00:34:53]} {[%emt 00:09:09]} 18. Re5 {[%clk
01:12:16]} {[%emt 00:02:42]} Be6 {[%clk 00:31:50]} {[%emt 00:03:33]} 19. Rae1
{[%clk 01:08:41]} {[%emt 00:04:04]} Qb6 {[%clk 00:29:14]} {[%emt 00:03:08]} 20.
Qe3 {[%clk 01:03:24]} {[%emt 00:05:46]} Ng4 {[%clk 00:27:42]} {[%emt 00:02:02]}
21. fxg4 {[%clk 01:02:21]} {[%emt 00:01:33]} Bxh4 {[%clk 00:27:57]} {[%emt
00:00:16]} 22. g3 {[%clk 01:02:36]} {[%emt 00:00:15]} Bf6 {[%clk 00:28:11]}
{[%emt 00:00:15]} 23. Qf4 {[%clk 00:55:48]} {[%emt 00:25:05]} Bxe5 {[%clk
00:28:18]} {[%emt 00:00:23]} 24. Rxe5 {[%clk 00:55:50]} {[%emt 00:00:28]} Qd8
{[%clk 00:27:37]} {[%emt 00:01:11]} 25. Nc5 {[%clk 00:48:54]} {[%emt 00:07:26]}
b6 {[%clk 00:27:12]} {[%emt 00:00:56]} 26. Nd3 {[%clk 00:46:32]} {[%emt
00:02:52]} Qf6 {[%clk 00:26:16]} {[%emt 00:01:26]} 27. Qe3 {[%clk 00:44:54]}
{[%emt 00:02:08]} Bd7 {[%clk 00:25:40]} {[%emt 00:01:05]} 28. Qd2 {[%clk
00:42:46]} {[%emt 00:02:38]} Rxe5 {[%clk 00:24:57]} {[%emt 00:01:13]} 29. Nxe5
{[%clk 00:43:04]} {[%emt 00:00:12]} Qe7 {[%clk 00:23:53]} {[%emt 00:01:34]} 30.
Qf2 {[%clk 00:42:14]} {[%emt 00:01:19]} f6 {[%clk 00:23:14]} {[%emt 00:01:09]}
31. Ng6 {[%clk 00:42:17]} {[%emt 00:00:26]} Qf7 {[%clk 00:23:23]} {[%emt
00:00:21]} 32. Nh4 {[%clk 00:42:03]} {[%emt 00:00:45]} Bxg4 {[%clk 00:22:19]}
{[%emt 00:01:34]} 33. Qf4 {[%clk 00:42:22]} {[%emt 00:00:10]} Be6 {[%clk
00:21:22]} {[%emt 00:01:28]} 34. Qd6 {[%clk 00:42:39]} {[%emt 00:00:14]} Qd7
{[%clk 00:21:00]} {[%emt 00:00:51]} 35. Qb4 {[%clk 00:42:00]} {[%emt 00:01:10]}
Bf7 {[%clk 00:20:26]} {[%emt 00:01:04]} 36. Ne2 {[%clk 00:40:14]} {[%emt
00:02:15]} Qe6 {[%clk 00:19:38]} {[%emt 00:01:19]} 37. Nf4 {[%clk 00:39:49]}
{[%emt 00:00:55]} Qe3+ {[%clk 00:19:44]} {[%emt 00:00:23]} 0-1

[Event "NJSK 2022 Meisjes A&B"]
[Site "Almelo, Netherlands"]
[Date "2022.05.02"]
[Round "2.1"]
[White "De Zoeten, Cato"]
[Black "Den Heijer, Rolinde"]
[Result "0-1"]
[TimeControl "90min/40moves + 30min + 30sec/move"]
[WhiteElo "1915"]
[BlackElo "1754"]

1. e4 {[%clk 01:30:57]} {[%emt 00:00:03]} c5 {[%clk 01:30:58]} {[%emt
00:00:03]} 2. Nf3 {[%clk 01:31:19]} {[%emt 00:00:07]} d6 {[%clk 01:31:24]}
{[%emt 00:00:04]} 3. d4 {[%clk 01:31:44]} {[%emt 00:00:04]} cxd4 {[%clk
01:31:51]} {[%emt 00:00:04]} 4. Nxd4 {[%clk 01:32:09]} {[%emt 00:00:04]} Nf6
{[%clk 01:32:13]} {[%emt 00:00:09]} 5. Nc3 {[%clk 01:32:34]} {[%emt 00:00:05]}
g6 {[%clk 01:32:35]} {[%emt 00:00:08]} 6. Be3 {[%clk 01:32:53]} {[%emt
00:00:11]} Bg7 {[%clk 01:32:56]} {[%emt 00:00:08]} 7. f3 {[%clk 01:33:03]}
{[%emt 00:00:20]} O-O {[%clk 01:33:10]} {[%emt 00:00:17]} 8. Qd2 {[%clk
01:33:27]} {[%emt 00:00:05]} Nc6 {[%clk 01:33:30]} {[%emt 00:00:11]} 9. O-O-O
{[%clk 01:33:06]} {[%emt 00:00:50]} d5 {[%clk 01:33:45]} {[%emt 00:00:15]} 10.
exd5 {[%clk 01:33:00]} {[%emt 00:00:37]} Nxd5 {[%clk 01:34:00]} {[%emt
00:00:15]} 11. Nxc6 {[%clk 01:33:11]} {[%emt 00:00:19]} bxc6 {[%clk 01:34:21]}
{[%emt 00:00:09]} 12. Bd4 {[%clk 01:33:27]} {[%emt 00:00:14]} e5 {[%clk
01:34:13]} {[%emt 00:00:37]} 13. Bc5 {[%clk 01:33:50]} {[%emt 00:00:07]} Be6
{[%clk 01:33:58]} {[%emt 00:00:46]} 14. Ne4 {[%clk 01:34:11]} {[%emt 00:00:09]}
Re8 {[%clk 01:33:58]} {[%emt 00:00:29]} 15. h4 {[%clk 01:33:59]} {[%emt
00:00:43]} Rb8 {[%clk 01:28:14]} {[%emt 00:06:15]} 16. g4 {[%clk 01:29:44]}
{[%emt 00:04:44]} Qc7 {[%clk 01:20:39]} {[%emt 00:08:05]} 17. h5 {[%clk
01:20:22]} {[%emt 00:09:52]} f5 {[%clk 01:06:53]} {[%emt 00:14:16]} 18. gxf5
{[%clk 01:13:25]} {[%emt 00:07:26]} gxf5 {[%clk 01:04:06]} {[%emt 00:03:17]} 19.
Nd6 {[%clk 00:56:33]} {[%emt 00:17:22]} Red8 {[%clk 00:52:55]} {[%emt
00:11:41]} 20. Rg1 {[%clk 00:49:36]} {[%emt 00:07:27]} Kh8 {[%clk 00:49:07]}
{[%emt 00:04:19]} 21. Nc4 {[%clk 00:28:03]} {[%emt 00:22:03]} Nb6 {[%clk
00:36:57]} {[%emt 00:12:40]} 22. Rxg7 {[%clk 00:17:26]} {[%emt 00:11:06]} Rxd2
{[%clk 00:17:03]} {[%emt 00:20:24]} 23. Rxc7 {[%clk 00:17:41]} {[%emt
00:00:15]} Rxd1+ {[%clk 00:17:25]} {[%emt 00:00:09]} 24. Kxd1 {[%clk 00:18:04]}
{[%emt 00:00:06]} Nxc4 {[%clk 00:17:09]} {[%emt 00:00:46]} 25. b3 {[%clk
00:16:54]} {[%emt 00:01:41]} Rd8+ {[%clk 00:16:35]} {[%emt 00:01:03]} 26. Kc1
{[%clk 00:12:57]} {[%emt 00:04:27]} Nb6 {[%clk 00:16:08]} {[%emt 00:00:58]} 27.
c4 {[%clk 00:10:26]} {[%emt 00:03:01]} Nd7 {[%clk 00:13:32]} {[%emt 00:03:06]}
28. Bxa7 {[%clk 00:08:25]} {[%emt 00:02:31]} Ra8 {[%clk 00:11:39]} {[%emt
00:02:22]} 29. Kb2 {[%clk 00:07:03]} {[%emt 00:01:52]} Re8 {[%clk 00:08:45]}
{[%emt 00:03:24]} 30. Rxc6 {[%clk 00:06:30]} {[%emt 00:01:03]} Nf6 {[%clk
00:07:37]} {[%emt 00:01:38]} 31. h6 {[%clk 00:05:56]} {[%emt 00:01:04]} Ng8
{[%clk 00:07:31]} {[%emt 00:00:37]} 32. f4 {[%clk 00:04:23]} {[%emt 00:02:03]}
Nxh6 {[%clk 00:07:22]} {[%emt 00:00:39]} 33. fxe5 {[%clk 00:04:35]} {[%emt
00:00:18]} Ng4 {[%clk 00:06:42]} {[%emt 00:01:10]} 34. Bd4 {[%clk 00:04:43]}
{[%emt 00:00:22]} h5 {[%clk 00:05:31]} {[%emt 00:01:41]} 35. a4 {[%clk
00:04:31]} {[%emt 00:00:42]} Nh2 {[%clk 00:04:40]} {[%emt 00:01:21]} 36. Bh3
{[%clk 00:03:25]} {[%emt 00:01:35]} Nf3 {[%clk 00:04:24]} {[%emt 00:00:46]} 37.
Bc3 {[%clk 00:03:30]} {[%emt 00:00:25]} h4 {[%clk 00:04:26]} {[%emt 00:00:28]}
38. a5 {[%clk 00:03:40]} {[%emt 00:00:21]} Ng5 {[%clk 00:04:18]} {[%emt
00:00:37]} 39. Bg2 {[%clk 00:01:08]} {[%emt 00:03:02]} f4 {[%clk 00:03:54]}
{[%emt 00:00:54]} 40. Bd2 {[%clk 00:00:55]} {[%emt 00:00:44]} Rf8 {[%clk
00:00:44]} {[%emt 00:03:39]} 41. a6 {[%clk 00:08:58]} {[%emt 00:22:27]} h3
{[%clk 00:20:06]} {[%emt 00:11:08]} 42. Bh1 {[%clk 00:09:24]} {[%emt 00:00:04]}
f3 {[%clk 00:15:21]} {[%emt 00:05:16]} 43. Bxg5 {[%clk 00:07:47]} {[%emt
00:02:06]} f2 {[%clk 00:13:51]} {[%emt 00:02:00]} 44. Bf6+ {[%clk 00:06:32]}
{[%emt 00:01:45]} Rxf6 {[%clk 00:11:47]} {[%emt 00:02:34]} 45. exf6 {[%clk
00:06:27]} {[%emt 00:00:36]} f1=Q {[%clk 00:11:31]} {[%emt 00:00:46]} 46. Rxe6
{[%clk 00:04:44]} {[%emt 00:02:12]} Qxh1 {[%clk 00:07:13]} {[%emt 00:04:48]} 47.
Re8+ {[%clk 00:02:41]} {[%emt 00:02:34]} Kh7 {[%clk 00:07:35]} {[%emt
00:00:08]} 48. a7 {[%clk 00:02:18]} {[%emt 00:00:53]} h2 {[%clk 00:03:11]}
{[%emt 00:04:53]} 49. Re2 {[%clk 00:00:48]} {[%emt 00:02:00]} Qa8 {[%clk
00:01:47]} {[%emt 00:01:54]} 50. Rxh2+ {[%clk 00:01:09]} {[%emt 00:00:10]} Kg6
{[%clk 00:02:05]} {[%emt 00:00:12]} 51. f7 {[%clk 00:00:42]} {[%emt 00:00:57]}
Kxf7 {[%clk 00:01:13]} {[%emt 00:01:21]} 52. Rh7+ {[%clk 00:01:04]} {[%emt
00:00:08]} Ke6 {[%clk 00:01:34]} {[%emt 00:00:09]} 53. Rh6+ {[%clk 00:00:47]}
{[%emt 00:00:47]} Kd7 {[%clk 00:01:40]} {[%emt 00:00:24]} 54. Ra6 {[%clk
00:01:04]} {[%emt 00:00:13]} Kc7 {[%clk 00:01:45]} {[%emt 00:00:25]} 55. b4
{[%clk 00:01:04]} {[%emt 00:00:31]} Kb7 {[%clk 00:01:34]} {[%emt 00:00:40]} 56.
b5 {[%clk 00:01:14]} {[%emt 00:00:21]} Qh8+ {[%clk 00:01:33]} {[%emt 00:00:30]}
57. Kb3 {[%clk 00:01:29]} {[%emt 00:00:15]} Ka8 {[%clk 00:01:33]} {[%emt
00:00:30]} 58. b6 {[%clk 00:01:33]} {[%emt 00:00:26]} Qc8 {[%clk 00:01:08]}
{[%emt 00:00:55]} 59. Ra5 {[%clk 00:00:54]} {[%emt 00:01:10]} Qb7 {[%clk
00:01:04]} {[%emt 00:00:34]} 60. Rb5 {[%clk 00:01:04]} {[%emt 00:00:20]} Qf3+
{[%clk 00:01:12]} {[%emt 00:00:21]} 61. Kb4 {[%clk 00:01:13]} {[%emt 00:00:21]}
Kb7 {[%clk 00:01:26]} {[%emt 00:00:16]} 62. Ra5 {[%clk 00:00:52]} {[%emt
00:00:52]} Qf8+ {[%clk 00:01:10]} {[%emt 00:00:45]} 63. Kb3 {[%clk 00:00:53]}
{[%emt 00:00:29]} Qf3+ {[%clk 00:01:16]} {[%emt 00:00:24]} 64. Kb4 {[%clk
00:00:40]} {[%emt 00:00:43]} Qf8+ {[%clk 00:01:29]} {[%emt 00:00:17]} 65. Ka4
{[%clk 00:00:49]} {[%emt 00:00:22]} Qe8+ {[%clk 00:01:26]} {[%emt 00:00:32]} 66.
Rb5 {[%clk 00:01:13]} {[%emt 00:00:07]} Qc6 {[%clk 00:01:08]} {[%emt 00:00:48]}
67. Kb4 {[%clk 00:00:37]} {[%emt 00:01:06]} Qe4 {[%clk 00:01:00]} {[%emt
00:00:37]} 68. Ra5 {[%clk 00:00:43]} {[%emt 00:00:24]} Qe1+ {[%clk 00:00:59]}
{[%emt 00:00:31]} 69. Ka4 {[%clk 00:00:49]} {[%emt 00:00:24]} Qa1+ {[%clk
00:01:00]} {[%emt 00:00:29]} 70. Kb5 {[%clk 00:01:07]} {[%emt 00:00:12]} Qb2+
{[%clk 00:01:01]} {[%emt 00:00:29]} 71. Kc5 {[%clk 00:01:17]} {[%emt 00:00:20]}
Qxb6+ {[%clk 00:01:08]} {[%emt 00:00:23]} 72. Kd4 {[%emt 00:00:19]} 0-1

[Event "NJSK 2022 Meisjes A&B"]
[Site "Almelo, Netherlands"]
[Date "2022.05.02"]
[Round "2.2"]
[White "Van Essen, Marieke"]
[Black "Verheij, Dana"]
[Result "1/2-1/2"]
[TimeControl "90min/40moves + 30min + 30sec/move"]
[WhiteElo "1728"]
[BlackElo "1828"]

1. e4 {[%clk 01:30:57]} {[%emt 00:00:03]} c5 {[%clk 01:30:53]} {[%emt
00:00:08]} 2. Nf3 {[%clk 01:31:22]} {[%emt 00:00:06]} d6 {[%clk 01:31:19]}
{[%emt 00:00:03]} 3. Bb5+ {[%clk 01:31:47]} {[%emt 00:00:05]} Nd7 {[%clk
01:31:35]} {[%emt 00:00:15]} 4. c4 {[%clk 01:32:06]} {[%emt 00:00:11]} Ngf6
{[%clk 01:30:35]} {[%emt 00:01:30]} 5. Nc3 {[%clk 01:32:17]} {[%emt 00:00:18]}
g6 {[%clk 01:29:58]} {[%emt 00:01:08]} 6. d3 {[%clk 01:32:16]} {[%emt
00:00:30]} Bg7 {[%clk 01:29:39]} {[%emt 00:00:49]} 7. O-O {[%clk 01:31:44]}
{[%emt 00:01:03]} O-O {[%clk 01:30:00]} {[%emt 00:00:09]} 8. Ne1 {[%clk
01:30:53]} {[%emt 00:01:21]} a6 {[%clk 01:26:17]} {[%emt 00:04:13]} 9. Ba4
{[%clk 01:30:31]} {[%emt 00:00:52]} e5 {[%clk 01:24:06]} {[%emt 00:02:41]} 10.
f4 {[%clk 01:28:59]} {[%emt 00:02:02]} exf4 {[%clk 01:23:07]} {[%emt 00:01:29]}
11. Bxf4 {[%clk 01:25:12]} {[%emt 00:04:17]} Qe7 {[%emt 00:17:25]} 12. Nf3
{[%clk 01:15:06]} h6 {[%clk 01:14:50]} {[%emt 00:02:27]} 13. Qe1 {[%clk
01:04:28]} {[%emt 00:11:09]} Ne5 {[%clk 01:07:11]} {[%emt 00:08:09]} 14. Bxe5
{[%clk 01:00:05]} {[%emt 00:04:53]} dxe5 {[%clk 01:07:36]} {[%emt 00:00:05]} 15.
Nd5 {[%clk 00:54:37]} {[%emt 00:05:58]} Nxd5 {[%clk 01:02:23]} {[%emt
00:05:43]} 16. exd5 {[%clk 00:52:46]} {[%emt 00:02:21]} Qd6 {[%clk 00:53:49]}
{[%emt 00:09:03]} 17. Rb1 {[%clk 00:48:00]} {[%emt 00:05:17]} b5 {[%clk
00:47:12]} {[%emt 00:07:07]} 18. Bc2 {[%clk 00:45:43]} {[%emt 00:02:47]} Bd7
{[%clk 00:44:55]} {[%emt 00:02:47]} 19. a3 {[%clk 00:44:15]} {[%emt 00:01:58]}
bxc4 {[%clk 00:36:57]} {[%emt 00:08:28]} 20. dxc4 {[%clk 00:44:00]} {[%emt
00:00:45]} f5 {[%clk 00:37:01]} {[%emt 00:00:26]} 21. Qg3 {[%clk 00:36:14]}
{[%emt 00:08:16]} Qf6 {[%clk 00:32:00]} {[%emt 00:05:28]} 22. Nh4 {[%clk
00:29:46]} {[%emt 00:07:00]} Kh7 {[%clk 00:30:16]} {[%emt 00:02:14]} 23. Rbd1
{[%clk 00:24:04]} {[%emt 00:06:12]} Qg5 {[%clk 00:26:14]} {[%emt 00:04:33]} 24.
Qxg5 {[%clk 00:15:59]} {[%emt 00:08:35]} hxg5 {[%clk 00:26:39]} {[%emt
00:00:05]} 25. Nf3 {[%clk 00:16:17]} {[%emt 00:00:12]} g4 {[%clk 00:18:28]}
{[%emt 00:08:42]} 26. Ng5+ {[%clk 00:14:11]} {[%emt 00:02:36]} Kh6 {[%clk
00:16:57]} {[%emt 00:02:00]} 27. Ne6 {[%clk 00:14:03]} {[%emt 00:00:37]} Bxe6
{[%clk 00:15:49]} {[%emt 00:01:39]} 28. dxe6 {[%clk 00:14:28]} {[%emt
00:00:05]} Rae8 {[%clk 00:15:46]} {[%emt 00:00:33]} 29. Rd6 {[%clk 00:13:53]}
{[%emt 00:01:05]} Rf6 {[%clk 00:15:24]} {[%emt 00:00:51]} 30. Rxa6 {[%clk
00:12:53]} {[%emt 00:01:31]} Rfxe6 {[%clk 00:15:43]} {[%emt 00:00:12]} 31. Rxe6
{[%clk 00:10:46]} {[%emt 00:02:37]} Rxe6 {[%clk 00:16:08]} {[%emt 00:00:04]} 32.
b4 {[%clk 00:08:51]} {[%emt 00:02:25]} e4 {[%clk 00:11:25]} {[%emt 00:05:13]}
33. Rb1 {[%clk 00:06:22]} {[%emt 00:02:59]} e3 {[%clk 00:07:43]} {[%emt
00:04:12]} 34. Bd3 {[%clk 00:05:03]} {[%emt 00:01:49]} Bd4 {[%clk 00:05:40]}
{[%emt 00:02:33]} 35. Be2 {[%clk 00:04:30]} {[%emt 00:01:04]} Ra6 {[%clk
00:02:40]} {[%emt 00:03:30]} 36. b5 {[%clk 00:03:10]} {[%emt 00:01:49]} Rxa3
{[%clk 00:02:17]} {[%emt 00:00:53]} 37. b6 {[%clk 00:03:21]} {[%emt 00:00:20]}
Ra8 {[%clk 00:02:15]} {[%emt 00:00:32]} 38. b7 {[%clk 00:02:08]} {[%emt
00:01:42]} Rb8 {[%clk 00:02:39]} {[%emt 00:00:06]} 39. Kf1 {[%clk 00:01:52]}
{[%emt 00:00:46]} Kg7 {[%clk 00:02:21]} {[%emt 00:00:48]} 40. Bd1 {[%clk
00:00:52]} {[%emt 00:01:30]} 1/2-1/2